bitfinex/quotes_ETHUSD_20220213
["timestamp","ask_amount","ask_price","bid_price","bid_amount"]
[1644779883227,0.0175689,2868.3,2868.2,0.573542]
[1644779883470,0.0175689,2868.3,2868.2,0.0174052]
[1644779883665,0.0175689,2868.3,2868.2,1.1890152]
[1644779883865,0.0175689,2868.3,2868.2,0.8064204]
[1644779885566,0.0175689,2868.3,2868.2,0.0174052]
[1644779886167,0.0175689,2868.3,2868.2,0.069542]
[1644779887916,0.86979526,2868.7,2868.2,0.069542]
[1644779888515,0.1743,2869.0,2868.2,0.069542]
[1644779888917,0.04035807,2868.7,2868.2,0.069542]
[1644779889115,0.04035807,2868.7,2868.2,0.941252]
[1644779890017,0.01091695,2868.6,2868.2,0.926023]
[1644779890217,1.14176944,2868.3,2868.2,0.054313]
[1644779891073,1.1427449,2868.3,2868.2,0.054313]
[1644779891272,1.1427449,2868.3,2868.2,1.3e-05]
[1644779891273,0.00097546,2868.3,2868.2,1.3e-05]
[1644779894070,5.00097546,2868.3,2868.2,1.3e-05]
[1644779894276,5.66834264,2868.3,2868.2,1.3e-05]
[1644779894477,4.7,2868.0,2866.8,0.1743]
[1644779894730,0.94746768,2867.2,2866.8,0.1743]
[1644779894928,0.98239768,2867.2,2866.8,0.1743]
[1644779895130,1.82014087,2867.2,2866.8,0.1743]
[1644779895526,1.82014087,2867.2,2866.8,0.1243]
[1644779895728,1.74507319,2867.2,2866.8,0.1243]
[1644779895928,1.74507319,2867.2,2866.8,3.6243]
[1644779895929,0.87267319,2867.2,2866.8,3.6243]
[1644779896127,0.00384319,2867.3,2866.8,3.6243]
[1644779896327,1.46118,2867.7,2866.8,3.6243]
[1644779896328,0.00384319,2867.6,2866.8,3.6243]
[1644779896528,0.00384319,2867.6,2866.8,3.45]
[1644779896729,0.08493,2867.7,2866.8,3.45]
[1644779896730,1.13637685,2867.1,2866.8,3.45]
[1644779897132,1.91467685,2867.1,2866.8,3.45]
[1644779897330,1.91852004,2867.1,2866.8,3.45312911]
[1644779898128,1.91852004,2867.1,2865.9,1.91902]
[1644779898129,4.7,2867.0,2865.9,1.91902]
[1644779898330,4.7,2867.0,2866.1,0.1744]
[1644779898574,1.05433866,2866.6,2866.2,0.75599919]
[1644779898772,4.7,2867.0,2866.3,0.93039919]
[1644779898975,4.7,2867.0,2866.4,1.62826919]
[1644779899173,4.7,2867.0,2866.4,0.87227]
[1644779899374,4.7,2867.0,2866.0,0.1744]
[1644779899573,4.7,2867.0,2866.1,0.76701652]
[1644779899776,4.7,2867.0,2866.2,0.76701652]
[1644779899973,1.04134949,2866.9,2866.3,0.76701652]
[1644779900175,1.04134949,2866.9,2866.4,0.76701652]
[1644779900374,4.43379926,2866.9,2866.2,0.76701652]
[1644779900577,3.30108409,2866.8,2866.3,0.76884619]
[1644779900777,1.04134949,2866.9,2866.3,0.76884619]
[1644779900974,1.04134949,2866.9,2866.5,0.00363426]
[1644779901775,1.04134949,2866.9,2866.0,0.76902295]
[1644779901975,0.84263591,2866.2,2866.0,0.76902295]
[1644779902220,0.84263591,2866.2,2866.0,3.5]
[1644779902426,3.51407506,2866.1,2866.0,3.5]
[1644779902820,0.84263591,2866.2,2866.0,3.5]
[1644779903020,0.87264,2866.4,2866.0,3.5]
[1644779903221,0.1744,2866.4,2866.0,3.5]
[1644779903419,0.504,2866.7,2866.0,3.5]
[1644779903718,0.87261,2866.5,2866.0,3.5]
[1644779904119,2.87746936,2866.5,2866.0,3.5]
[1644779904520,2.00485936,2866.5,2866.1,0.01144543]
[1644779904720,1.13229936,2866.5,2866.1,0.01144543]
[1644779905320,2.00487936,2866.5,2866.1,0.01144543]
[1644779905523,2.00487936,2866.5,2866.0,3.5]
[1644779905524,1.13229936,2866.5,2866.0,3.5]
[1644779906468,7.00487936,2866.5,2866.0,1.91568186]
[1644779906664,5.0,2866.3,2866.0,1.91568186]
[1644779906863,0.1744,2866.2,2865.3,0.1744]
[1644779907066,0.504,2866.1,2865.4,0.73130253]
[1644779907268,5.0,2865.9,2865.3,0.1744]
[1644779907464,1.1358739,2865.4,2865.3,0.1744]
[1644779909064,1.3102739,2865.4,2865.3,0.1744]
[1644779909366,1.3102739,2865.4,2865.2,0.01144233]
[1644779909367,4.7,2865.3,2865.2,0.01144233]
[1644779909567,1.74593,2865.4,2865.2,0.01144233]
[1644779909816,0.504,2865.9,2865.2,0.01144233]
[1644779910013,0.1745,2866.0,2865.2,0.01144233]
[1644779910217,0.1745,2866.0,2864.3,3.7674052]
[1644779910415,0.1745,2866.0,2864.4,0.71473243]
[1644779910416,0.92145834,2865.3,2864.4,0.71473243]
[1644779910616,0.1745,2866.0,2864.4,0.88682372]
[1644779910817,0.87283,2865.7,2864.5,0.71473243]
[1644779911016,0.1745,2866.0,2864.5,0.71473243]
[1644779911216,0.8728,2865.9,2864.6,0.8728]
[1644779911416,0.8728,2865.9,2864.7,0.71473243]
[1644779911817,0.88374198,2865.6,2865.1,0.01144245]
[1644779912821,0.88374198,2865.6,2864.7,0.87276]
[1644779913017,0.88374198,2865.6,2865.2,0.01144233]
[1644779913219,0.1745,2866.0,2865.2,0.01144233]
[1644779913476,0.1744,2866.1,2865.2,3.72172355]
[1644779913668,4.8388,2866.3,2865.3,0.1744]
[1644779914066,4.8388,2866.3,2865.2,0.1744]
[1644779914266,1.13673756,2866.0,2865.5,0.01144195]
[1644779915165,1.13673756,2866.0,2865.2,0.1744]
[1644779915369,1.13673756,2866.0,2865.6,0.01144182]
[1644779916267,1.13673756,2866.0,2865.2,0.1744]
[1644779916666,1.13673756,2866.0,2865.7,0.01144176]
[1644779917517,1.13673756,2866.0,2865.2,0.1744]
[1644779917716,1.13673756,2866.0,2865.7,0.01144169]
[1644779918716,1.13673756,2866.0,2865.2,0.87264]
[1644779918917,1.13673756,2866.0,2865.7,0.01144169]
[1644779919920,1.13673756,2866.0,2865.3,0.1744]
[1644779920122,1.13673756,2866.0,2865.7,0.01144169]
[1644779920720,0.1744,2866.2,2865.7,0.01144169]
[1644779921171,0.1744,2866.2,2865.3,0.1744]
[1644779921372,0.1744,2866.2,2865.8,0.01144157]
[1644779921972,3.6518,2866.3,2865.8,0.01144157]
[1644779922371,3.6518,2866.3,2865.2,1.91949]
[1644779922671,3.6518,2866.3,2865.9,0.01144144]
[1644779923473,3.6518,2866.3,2865.3,0.87255]
[1644779923673,3.6518,2866.3,2866.0,0.01144138]
[1644779924474,8.92763,2866.6,2866.0,0.01144138]
[1644779924719,3.90369997,2866.9,2866.0,3.5]
[1644779924917,7.83849997,2866.9,2866.0,3.5]
[1644779925118,3.90369997,2866.9,2866.0,3.68512871]
[1644779925721,1.16825764,2866.7,2866.1,1.52349458]
[1644779925918,1.16825764,2866.7,2866.1,0.87235]
[1644779926118,1.16825764,2866.7,2866.3,0.01072833]
[1644779926322,3.90369997,2866.9,2866.3,0.01072833]
[1644779927118,3.90369997,2866.9,2866.0,3.6744]
[1644779927119,0.1744,2866.8,2866.0,3.6744]
[1644779927326,0.1744,2866.8,2866.0,3.5]
[1644779927327,1.08722862,2866.4,2866.0,3.5]
[1644779927920,1.04706,2866.3,2866.0,3.5]
[1644779928471,0.1744,2866.3,2866.0,3.5]
[1644779928664,0.1744,2866.3,2866.0,3.51072871]
[1644779929468,0.1744,2866.3,2866.0,3.4]
[1644779929667,1.08722862,2866.4,2866.0,3.41077636]
[1644779930666,1.08722862,2866.4,2866.0,3.4]
[1644779931069,1.08722862,2866.4,2866.1,0.01077629]
[1644779931865,1.08722862,2866.4,2866.0,3.4]
[1644779932066,7.89799997,2866.9,2866.0,3.4]
[1644779932067,4.58209997,2866.9,2866.0,3.4]
[1644779932328,4.58209997,2866.9,2866.1,0.01077623]
[1644779932329,3.90369997,2866.9,2866.1,0.01077623]
[1644779932823,4.77619997,2866.9,2866.1,0.01077623]
[1644779933026,4.77619997,2866.9,2866.0,3.4]
[1644779933224,1.00186058,2866.5,2866.0,3.4]
[1644779933425,1.00186058,2866.5,2866.4,0.01077277]
[1644779933628,0.00188618,2866.1,2866.0,3.4]
[1644779935828,0.00188618,2866.1,2866.0,4.00776254]
[1644779936072,0.00188618,2866.1,2866.0,3.4]
[1644779937072,0.92445614,2866.1,2866.0,3.4]
[1644779937272,1.09885614,2866.1,2866.0,3.4]
[1644779937471,0.92445614,2866.1,2866.0,3.4]
[1644779937873,6.78059455,2866.1,2866.0,3.4]
[1644779938072,1.95499455,2866.1,2866.0,3.4]
[1644779938272,2.82779455,2866.1,2866.0,3.4]
[1644779939072,1.95499455,2866.1,2866.0,3.4]
[1644779939272,1.78059455,2866.1,2866.0,3.4]
[1644779940319,1.78288359,2866.1,2866.0,3.4]
[1644779941117,1.78288359,2866.1,2866.0,23.4]
[1644779943666,0.86031363,2866.1,2866.0,23.4]
[1644779943866,0.00188618,2866.1,2866.0,24.00455941]
[1644779944268,0.86031363,2866.1,2866.0,24.00455941]
[1644779944767,0.00188618,2866.1,2866.0,24.00455941]
[1644779945767,0.00188618,2866.1,2866.0,24.00504821]
[1644779946968,0.00188618,2866.1,2866.0,23.4]
[1644779947236,0.86087569,2866.1,2866.0,23.4]
[1644779947423,0.85637992,2866.1,2866.0,24.01027585]
[1644779947623,0.00188618,2866.1,2866.0,24.01027585]
[1644779950325,0.9247007,2866.1,2866.0,24.01027585]
[1644779950525,1.77930391,2866.1,2866.0,24.01027585]
[1644779951469,1.77930391,2866.1,2866.0,24.00244897]
[1644779951671,1.77930391,2866.1,2866.0,24.00236224]
[1644779953268,1.78699919,2866.1,2866.0,24.00243208]
[1644779953668,1.78699919,2866.1,2866.0,24.00908662]
[1644779953868,1.78699919,2866.1,2866.0,24.00908048]
[1644779954068,1.78699919,2866.1,2866.0,24.01284792]
[1644779954271,1.78699919,2866.1,2866.0,23.4]
[1644779954469,1.78699919,2866.1,2866.0,24.01284857]
[1644779954727,1.78699919,2866.1,2866.0,22.42856308]
[1644779954919,1.78699919,2866.1,2866.0,21.81564213]
[1644779955319,1.78699919,2866.1,2866.0,22.4581414]
[1644779956827,1.78699919,2866.1,2866.0,21.81564213]
[1644779957023,0.86418467,2866.1,2866.0,21.81564213]
[1644779957624,0.86418467,2866.1,2866.0,22.45835236]
[1644779961577,0.86418467,2866.1,2866.0,21.81564213]
[1644779963327,0.86418467,2866.1,2866.0,22.4152211]
[1644779963528,0.86418467,2866.1,2866.0,22.41522988]
[1644779963928,0.86418467,2866.1,2866.0,21.81564213]
[1644779964328,0.86418467,2866.1,2866.0,22.41518077]
[1644779965527,0.86418467,2866.1,2866.0,21.81564213]
[1644779966464,0.86418467,2866.1,2866.0,22.38780363]
[1644779971419,0.86418467,2866.1,2866.0,21.81564213]
[1644779973021,0.86418467,2866.1,2866.0,22.40106788]
[1644779974871,0.86418467,2866.1,2866.0,20.23118445]
[1644779975074,0.86418467,2866.1,2866.0,20.84622395]
[1644779976678,0.81418467,2866.1,2866.0,20.84641261]
[1644779976877,4.7,2865.9,2865.2,0.1744]
[1644779977077,6.44564,2865.9,2865.2,0.1744]
[1644779977323,11.73305756,2865.9,2865.2,0.1744]
[1644779977519,0.1744,2865.8,2865.2,0.1744]
[1644779978118,0.8729,2865.7,2865.2,0.1744]
[1644779978318,2.93749934,2865.7,2865.2,0.1744]
[1644779978519,1.04734,2865.6,2865.2,0.1744]
[1644779978718,0.87294,2865.6,2865.2,0.1744]
[1644779979219,0.87294,2865.6,2865.0,2.0]
[1644779979220,5.0,2865.3,2865.0,2.0]
[1644779979418,6.74628,2865.3,2865.0,2.0]
[1644779979620,0.504,2865.2,2865.0,2.0]
[1644779979818,1.37797036,2865.2,2865.0,2.0]
[1644779980018,1.37797036,2865.2,2865.0,5.5]
[1644779980222,1.37797036,2865.2,2865.0,5.51144771]
[1644779980619,3.99726036,2865.2,2865.0,5.51144771]
[1644779981068,3.99726036,2865.2,2865.0,5.5]
[1644779981269,3.99726036,2865.2,2865.0,1.95]
[1644779981467,3.99726036,2865.2,2865.0,1.96144771]
[1644779982072,1.74698036,2865.2,2865.0,1.96144771]
[1644779982472,1.74698036,2865.2,2865.0,1.95]
[1644779982669,1.74698036,2865.2,2865.0,1.96144771]
[1644779983674,1.74698036,2865.2,2865.0,1.95]
[1644779983870,1.74698036,2865.2,2865.0,1.96144771]
[1644779984071,1.92138036,2865.2,2865.0,1.96144771]
[1644779984721,1.92138036,2865.2,2865.0,1.95]
[1644779984917,3.66753036,2865.2,2865.0,1.95]
[1644779985116,3.66753036,2865.2,2865.0,1.96144771]
[1644779985916,3.66753036,2865.2,2865.0,1.95]
[1644779986316,3.66753036,2865.2,2865.0,1.96144771]
[1644779987216,3.66753036,2865.2,2865.0,1.95]
[1644779987421,3.66753036,2865.2,2865.0,1.96144771]
[1644779988469,3.66753036,2865.2,2865.0,1.95]
[1644779988666,3.66753036,2865.2,2865.0,1.96144771]
[1644779989668,3.66753036,2865.2,2865.0,1.95]
[1644779989869,3.66753036,2865.2,2865.0,1.96144771]
[1644779990672,3.49313036,2865.2,2865.0,1.96144771]
[1644779990872,3.49313036,2865.2,2865.0,1.95]
[1644779991070,3.49313036,2865.2,2865.0,1.96144771]
[1644779991868,3.49313036,2865.2,2865.0,5.26144771]
[1644779992068,3.49313036,2865.2,2865.0,5.25]
[1644779992323,3.49313036,2865.2,2865.0,5.26144771]
[1644779993118,3.49313036,2865.2,2865.0,5.25]
[1644779993518,5.0,2865.1,2865.0,5.26144771]
[1644779993721,6.504,2865.1,2865.0,5.26144771]
[1644779994318,6.504,2865.1,2865.0,5.25]
[1644779994918,6.6784,2865.1,2865.0,3.66487367]
[1644779995218,1.6784,2865.1,2865.0,3.66487367]
[1644779995418,6.44639,2865.0,2864.6,0.0017363]
[1644779995618,0.87319,2864.8,2864.6,0.0017363]
[1644779995819,0.87319,2864.8,2864.4,0.8742363]
[1644779996670,0.99238719,2864.5,2864.4,0.8742363]
[1644779996871,0.99238719,2864.5,2864.4,1.43006782]
[1644779997272,0.99238719,2864.5,2864.4,0.55756782]
[1644780000523,0.99238719,2864.5,2864.3,0.0174052]
[1644780000723,0.99238719,2864.5,2864.3,0.02885787]
[1644780000925,0.99238719,2864.5,2864.4,0.52504492]
[1644780001326,2.61949,2864.6,2864.4,0.52504492]
[1644780001523,2.61949,2864.6,2864.3,0.0174052]
[1644780001923,2.61949,2864.6,2864.3,0.02885787]
[1644780002723,1.1313772,2864.4,2864.3,0.0174052]
[1644780002923,1.1313772,2864.4,2864.3,0.54243718]
[1644780003126,1.1313772,2864.4,2864.3,0.55388985]
[1644780003768,1.7463,2864.6,2864.3,0.55388985]
[1644780003972,1.7463,2864.6,2864.3,0.0174052]
[1644780004570,1.7463,2864.6,2864.3,3.3174052]
[1644780004770,2.73846167,2864.6,2864.3,3.3174052]
[1644780005172,2.73846167,2864.6,2864.3,0.0174052]
[1644780005471,2.73846167,2864.6,2864.3,0.02885787]
[1644780005871,2.73846167,2864.6,2864.4,0.53110507]
[1644780006075,1.04752,2864.8,2864.3,0.02885787]
[1644780006271,1.55152,2864.8,2864.3,0.02885787]
[1644780006575,1.55152,2864.8,2864.4,0.01145255]
[1644780006771,0.1744,2864.7,2864.4,0.01145255]
[1644780007224,0.1744,2865.0,2864.5,1.43182514]
[1644780007428,1.74604,2865.3,2864.6,0.5331686]
[1644780007632,0.1744,2865.5,2864.7,0.0017363]
[1644780007825,0.1744,2865.8,2864.7,0.0017363]
[1644780008026,0.92527945,2865.7,2864.7,0.0017363]
[1644780008226,0.92527945,2865.9,2865.1,0.97774021]
[1644780008424,0.92527945,2865.8,2865.2,0.5314323]
[1644780008629,0.96585943,2866.0,2864.8,3.3350363]
[1644780008630,0.92527945,2865.7,2864.8,3.3350363]
[1644780008825,0.96585943,2866.0,2864.8,3.3350363]
[1644780008826,0.92527945,2865.6,2864.9,0.54402765]
[1644780009026,0.96585943,2866.0,2865.0,0.54402765]
[1644780009330,0.87283,2865.7,2865.1,0.54402765]
[1644780009527,0.91602131,2865.6,2865.2,0.54402765]
[1644780009824,1.74566,2865.9,2864.8,0.00535185]
[1644780009825,2.01854275,2865.5,2864.8,0.00535185]
[1644780010025,1.10252144,2865.5,2864.9,0.71841472]
[1644780010325,0.91608784,2865.4,2865.0,0.54401472]
[1644780010524,0.01145333,2866.1,2865.1,0.54401472]
[1644780010525,1.93131333,2866.1,2865.1,0.54401472]
[1644780010728,1.09042541,2866.0,2865.2,0.54402225]
[1644780010981,0.01145333,2866.1,2865.2,0.54402225]
[1644780010982,0.91602541,2865.9,2865.3,0.54402225]
[1644780011380,3.8107,2866.4,2865.4,0.54402225]
[1644780011381,1.01773127,2866.2,2865.4,0.54402225]
[1644780011581,0.95676351,2866.1,2865.5,0.54402225]
[1644780011884,0.94530964,2866.0,2865.3,1.02889389]
[1644780012082,0.94530964,2866.0,2865.4,0.51463235]
[1644780012584,0.94530964,2866.1,2865.4,0.51463235]
[1644780012780,0.95676379,2866.1,2865.4,0.51463235]
[1644780012983,0.94530964,2866.0,2865.4,0.51463235]
[1644780013780,1.01773127,2866.2,2865.4,0.51463235]
[1644780013981,0.94826692,2866.1,2865.4,0.51463235]
[1644780014180,0.93681277,2866.0,2865.4,0.51463235]
[1644780014383,0.01145415,2866.1,2865.4,0.51463235]
[1644780014585,0.01145415,2866.1,2865.4,0.68903235]
[1644780014827,4.1162,2866.7,2865.5,0.51463235]
[1644780015028,0.01145428,2866.1,2865.5,0.51463235]
[1644780016022,0.87265,2866.3,2865.5,0.51463235]
[1644780016023,1.7453,2866.3,2865.5,0.51463235]
[1644780016223,1.74529,2866.6,2865.5,0.51463235]
[1644780016424,0.01145442,2866.1,2865.5,4.2551445]
[1644780016624,0.01145442,2866.1,2865.6,0.51463235]
[1644780016826,0.01145442,2866.1,2865.7,0.51463235]
[1644780017025,0.01145442,2866.1,2865.8,0.51463235]
[1644780017227,0.1744,2866.8,2865.4,0.6784]
[1644780017228,1.0469,2866.8,2865.5,0.51463235]
[1644780017428,0.01145469,2866.1,2865.6,0.51463235]
[1644780017627,0.01145469,2866.1,2865.7,4.93119518]
[1644780017628,0.00332671,2866.1,2865.7,4.93119518]
[1644780017827,0.00332671,2866.1,2865.8,0.51463235]
[1644780018028,0.00332671,2866.1,2865.8,0.81463235]
[1644780018228,0.00332671,2866.1,2865.9,5.05464811]
[1644780018478,0.13819997,2867.1,2866.0,1.38694235]
[1644780018680,0.92587115,2867.0,2866.1,4.25637893]
[1644780018880,0.92587115,2867.0,2866.2,0.51463235]
[1644780019079,0.92587115,2867.0,2866.3,0.51463235]
[1644780019280,0.92587115,2867.0,2866.1,0.1744]
[1644780019479,0.92587115,2867.0,2866.2,0.53223744]
[1644780019783,0.92587115,2867.0,2866.0,0.1744]
[1644780019784,1.10027115,2867.0,2866.0,1.04677]
[1644780019983,0.92587115,2866.9,2866.1,0.53183557]
[1644780020180,0.92587115,2866.9,2865.9,0.95418627]
[1644780020781,0.92587115,2866.9,2866.0,0.53182601]
[1644780020782,1.79833115,2866.9,2866.0,0.53182601]
[1644780020982,1.97279115,2866.8,2866.0,0.53182601]
[1644780021182,0.92587115,2866.7,2865.7,1.2372]
[1644780021381,0.1744,2866.6,2865.8,0.53179104]
[1644780021782,0.87252,2866.8,2865.8,0.53179104]
[1644780021783,0.1744,2866.7,2865.8,0.53179104]
[1644780021983,1.79738303,2866.6,2865.8,0.53179104]
[1644780022229,0.87255,2866.6,2865.8,0.53179104]
[1644780022423,0.01145437,2866.3,2865.9,0.53179104]
[1644780022621,0.01145437,2866.3,2865.7,0.84075128]
[1644780022821,0.01145437,2866.3,2865.8,0.5316612]
[1644780023222,1.04695,2866.6,2865.8,0.5316612]
[1644780023424,0.01145436,2866.2,2865.8,0.5316612]
[1644780024524,0.1744,2866.5,2865.8,0.5316612]
[1644780024722,0.01145422,2866.2,2865.8,3.5]
[1644780025524,1.04699,2866.5,2865.8,3.5]
[1644780025972,0.01145422,2866.2,2865.8,3.5]
[1644780026173,0.01145422,2866.2,2865.9,0.54487621]
[1644780026873,0.1744,2866.9,2865.9,0.54487621]
[1644780027074,0.01145436,2866.2,2865.9,0.54487621]
[1644780028076,0.1744,2866.9,2866.4,1.18011601]
[1644780028277,0.04580815,2866.8,2866.4,1.18011601]
[1644780028478,0.04580815,2866.8,2866.0,0.1744]
[1644780028677,0.04580815,2866.8,2866.1,0.54916427]
[1644780028877,0.04580815,2866.8,2866.0,0.1744]
[1644780029277,0.87244,2867.0,2866.1,0.54888435]
[1644780029479,0.01145412,2866.5,2866.1,0.54888435]
[1644780029735,0.01145412,2866.5,2866.2,1.10054492]
[1644780030526,0.87244,2867.0,2866.2,1.10054492]
[1644780030725,0.01145418,2866.5,2866.2,1.10054492]
[1644780031625,0.22020985,2866.9,2866.2,1.10054492]
[1644780031626,0.1744,2866.9,2866.2,1.10054492]
[1644780031826,0.01145418,2866.5,2866.2,1.10054492]
[1644780032428,0.01145418,2866.5,2866.3,0.5530812]
[1644780032827,0.27639994,2867.1,2866.3,0.5530812]
[1644780033027,0.01145412,2866.5,2866.2,1.10054492]
[1644780034072,0.27639994,2867.1,2866.2,1.10054492]
[1644780034271,0.01145418,2866.5,2866.2,1.10054492]
[1644780035276,0.27639994,2867.1,2866.2,1.10054492]
[1644780035472,0.01145418,2866.5,2866.2,1.10054492]
[1644780036271,0.01145418,2866.5,2865.9,1.2164]
[1644780036473,1.14883994,2867.1,2865.9,1.2164]
[1644780036474,0.1744,2866.8,2865.9,1.2164]
[1644780036672,0.01145418,2866.5,2865.9,1.2164]
[1644780037425,0.01145418,2866.5,2866.0,0.99340588]
[1644780037626,0.1744,2866.4,2866.0,0.99340588]
[1644780037829,2.87514525,2866.8,2866.0,0.99340588]
[1644780038027,0.01145437,2866.3,2865.8,3.45]
[1644780038825,3.74769525,2866.8,2865.8,3.45]
[1644780039028,3.74769525,2866.8,2865.9,0.5548908]
[1644780039225,3.74769525,2866.8,2865.8,4.5499928]
[1644780039226,0.01145436,2866.2,2865.8,4.5499928]
[1644780040127,3.74769525,2866.8,2865.8,4.5499928]
[1644780040332,0.01145422,2866.2,2865.8,4.5499928]
[1644780041371,0.1744,2866.7,2865.9,0.55550369]
[1644780041570,0.01145422,2866.2,2865.9,0.55550369]
[1644780042471,3.74769525,2866.8,2865.9,0.55550369]
[1644780042771,0.01145436,2866.2,2865.9,0.55550369]
[1644780043771,0.1744,2866.7,2865.9,0.55550369]
[1644780043971,0.01145436,2866.2,2865.9,0.55550369]
[1644780044920,0.1744,2866.7,2866.3,1.18863873]
[1644780045120,0.90324812,2866.6,2866.2,0.00864868]
[1644780045322,0.90324812,2866.7,2866.2,0.00864868]
[1644780046328,0.01145405,2866.6,2866.2,0.00864868]
[1644780047326,1.58141314,2866.5,2866.2,0.00864868]
[1644780047523,0.90301314,2866.4,2866.2,0.00864868]
[1644780047725,0.1744,2866.3,2866.2,0.00864868]
[1644780047924,1.07741314,2866.3,2866.2,0.00864868]
[1644780048128,2.68554603,2866.3,2866.2,0.00864868]
[1644780049378,6.17946964,2866.3,2866.2,0.00864868]
[1644780049980,6.17946964,2866.3,2866.2,4.868e-05]
[1644780049981,14.4638572,2866.3,2866.2,4.868e-05]
[1644780050179,9.7638572,2866.3,2866.2,4.868e-05]
[1644780050683,9.10765964,2866.3,2866.2,4.868e-05]
[1644780052081,9.0753049,2866.3,2866.2,4.868e-05]
[1644780052332,6.77368675,2866.3,2866.2,4.868e-05]
[1644780052532,7.4277524,2866.3,2866.2,4.868e-05]
[1644780052726,7.7277524,2866.3,2866.2,4.868e-05]
[1644780052927,6.4277524,2866.3,2866.2,4.868e-05]
[1644780053128,6.77368675,2866.3,2866.2,4.868e-05]
[1644780055232,8.19787675,2866.3,2866.2,4.868e-05]
[1644780055430,7.89787675,2866.3,2866.2,4.868e-05]
[1644780055633,5.77368675,2866.3,2866.2,4.868e-05]
[1644780055837,6.77368675,2866.3,2866.2,4.868e-05]
[1644780056277,7.42816491,2866.3,2866.2,4.868e-05]
[1644780056679,6.77368675,2866.3,2866.2,4.868e-05]
[1644780056878,7.42801054,2866.3,2866.2,4.868e-05]
[1644780057678,6.77368675,2866.3,2866.2,4.868e-05]
[1644780057880,8.25213106,2866.3,2866.2,4.868e-05]
[1644780058081,2.43004014,2866.3,2866.2,4.868e-05]
[1644780058279,1.77576314,2866.3,2866.2,4.868e-05]
[1644780058486,0.90301314,2866.3,2866.2,4.868e-05]
[1644780058681,0.91446745,2866.4,2866.2,4.868e-05]
[1644780058882,0.90301314,2866.3,2866.2,4.868e-05]
[1644780059081,0.90301314,2866.3,2866.2,0.8572947]
[1644780059286,0.90301314,2866.9,2866.2,1.34937034]
[1644780059486,0.96979058,2866.8,2866.3,1.53881564]
[1644780059738,0.01145431,2866.4,2866.3,1.04674]
[1644780059926,0.01145431,2866.4,2866.3,1.53875105]
[1644780060127,0.01145431,2866.4,2866.3,7.51484234]
[1644780060429,0.00384522,2867.3,2866.3,13.19898117]
[1644780060625,0.00384522,2867.3,2866.6,0.87201]
[1644780060827,0.654277,2867.9,2866.3,8.33463012]
[1644780060828,0.00384522,2867.8,2866.7,0.6784]
[1644780061032,0.00384522,2867.3,2866.8,0.50400478]
[1644780061226,1.526527,2867.8,2866.8,0.50400478]
[1644780061227,1.13307707,2867.5,2866.8,0.50400478]
[1644780061428,0.96199185,2867.4,2866.9,0.50400478]
[1644780061626,0.96199185,2867.4,2866.7,0.90225549]
[1644780061627,0.95814663,2867.3,2866.7,0.90225549]
[1644780061827,0.95814663,2867.3,2866.8,0.50394104]
[1644780061828,0.00384522,2867.2,2866.8,0.50394104]
[1644780062030,0.95814663,2867.2,2866.5,1.74439]
[1644780062227,0.95814663,2867.2,2866.6,0.5039633]
[1644780062228,0.95814663,2867.1,2866.6,0.5039633]
[1644780062431,0.00384522,2867.0,2866.7,0.5039633]
[1644780062727,0.95814663,2867.0,2866.5,0.1744]
[1644780062928,0.95814663,2866.9,2866.6,0.50387486]
[1644780063229,1.83063663,2866.9,2866.6,0.50387486]
[1644780063499,0.0114465,2867.0,2866.6,0.50387486]
[1644780063900,0.95765865,2866.9,2866.6,0.50387486]
[1644780064301,0.00384522,2867.2,2866.6,0.50387486]
[1644780064503,0.01144656,2866.9,2866.5,0.1744]
[1644780064713,0.95754807,2866.8,2866.5,0.1744]
[1644780065503,0.01144675,2866.8,2866.3,1.15557588]
[1644780065703,0.01144675,2866.8,2866.4,0.50387971]
[1644780065907,0.01144675,2866.8,2866.4,0.67827971]
[1644780066103,0.01144675,2866.8,2866.5,0.50387971]
[1644780066505,0.00384522,2867.4,2866.6,0.50387971]
[1644780066706,0.04577956,2867.3,2867.0,0.90920877]
[1644780067004,0.04577956,2867.3,2866.4,1.08298975]
[1644780067005,0.28412277,2866.7,2866.4,1.08298975]
[1644780067237,0.04577956,2867.3,2866.7,4.7]
[1644780067238,0.00384522,2867.1,2866.7,4.7]
[1644780067432,10.48009815,2868.1,2866.7,4.7]
[1644780067433,0.00384522,2867.5,2866.9,4.7]
[1644780067630,0.00384522,2867.7,2867.0,4.69690572]
[1644780067833,8.52182815,2868.4,2867.1,0.52413382]
[1644780067834,0.00384522,2867.9,2867.1,0.52413382]
[1644780068029,0.91437387,2868.0,2867.2,3.75519492]
[1644780068229,0.91821909,2867.9,2867.4,1.02769147]
[1644780068430,0.91437387,2867.8,2867.4,1.02769147]
[1644780068630,0.91437387,2867.7,2867.6,0.87191]
[1644780070235,0.90247811,2867.7,2867.4,1.02769147]
[1644780070435,0.1743,2868.1,2867.4,1.02769147]
[1644780070737,0.90633345,2868.0,2867.4,1.02769147]
[1644780070977,0.90248823,2867.9,2867.6,3.5]
[1644780071179,0.90248823,2867.8,2867.6,3.5]
[1644780071382,0.90248823,2867.7,2867.6,3.5]
[1644780071578,0.01143801,2867.9,2867.6,3.5]
[1644780071781,0.90248823,2867.8,2867.6,3.5]
[1644780071980,0.90248823,2867.8,2867.6,4.37189]
[1644780072180,0.01143801,2867.9,2867.6,3.5]
[1644780072380,0.01143801,2867.9,2867.7,0.8719]
[1644780072580,0.00384522,2868.5,2867.7,0.8719]
[1644780072781,0.01143801,2867.9,2867.7,0.8719]
[1644780072981,5.12256551,2868.6,2867.9,1.04654513]
[1644780073180,0.00386872,2868.4,2867.7,0.8719]
[1644780073381,0.00386872,2868.4,2867.6,3.5]
[1644780073581,0.12816872,2868.6,2867.7,6.6440961]
[1644780073781,0.12816872,2868.6,2867.6,3.5]
[1644780074182,0.1743,2868.9,2867.8,4.71293044]
[1644780074383,0.0174467,2869.1,2868.1,6.74301]
[1644780074582,0.0174467,2869.1,2868.3,5.0]
[1644780074830,0.0174467,2869.1,2868.1,1.3755]
[1644780074831,0.0174467,2869.1,2868.4,0.87141]
[1644780075032,0.0174467,2869.1,2868.5,0.1741]
[1644780075430,0.0174467,2869.1,2868.6,1.87387115]
[1644780075629,0.0174467,2869.1,2868.6,1.00230115]
[1644780076534,0.0114366,2869.0,2868.6,1.00230115]
[1644780077229,0.0114366,2869.0,2868.6,2.74547115]
[1644780077430,0.0174467,2869.1,2868.6,3.61704115]
[1644780077630,0.01143666,2868.9,2868.6,2.74545115]
[1644780077829,0.01143666,2868.9,2868.7,0.3]